[Event "Early-Titled-Tuesday-Blitz-September-05-2023"]
[Site "Chess.com"]
[Date "2023.09.05"]
[Round "11"]
[White "wonderfultime"]
[Black "vugarrasulov"]
[Result "1/2-1/2"]
[WhiteElo "3025"]
[BlackElo "2963"]
[TimeControl "180+1"]
[EndTime "10:04:44 PDT"]
[Termination "Game drawn by agreement"]

1. d4 {[%clk 0:02:52.2]} 1... d5 {[%clk 0:03:00.1]} 2. Nf3 {[%clk 0:02:52.7]}
2... Nf6 {[%clk 0:03:00.1]} 3. Bf4 {[%clk 0:02:53.2]} 3... e6 {[%clk 0:02:59.7]}
4. e3 {[%clk 0:02:53.1]} 4... Bd6 {[%clk 0:03:00.3]} 5. Nbd2 {[%clk 0:02:53.7]}
5... O-O {[%clk 0:02:59.2]} 6. Bd3 {[%clk 0:02:53.3]} 6... Nc6 {[%clk
0:02:59.7]} 7. c3 {[%clk 0:02:50.5]} 7... Qe7 {[%clk 0:02:59.1]} 8. Ne5 {[%clk
0:02:35.4]} 8... Nd7 {[%clk 0:02:58.7]} 9. Nxd7 {[%clk 0:02:13.4]} 9... Bxd7
{[%clk 0:02:58.1]} 10. Bxd6 {[%clk 0:02:13.9]} 10... cxd6 {[%clk 0:02:58.1]} 11.
O-O {[%clk 0:02:12.6]} 11... e5 {[%clk 0:02:54.1]} 12. Qb3 {[%clk 0:02:12.8]}
12... Be6 {[%clk 0:02:49.6]} 13. Rae1 {[%clk 0:02:10.4]} 13... Qc7 {[%clk
0:02:40]} 14. f4 {[%clk 0:02:05]} 14... e4 {[%clk 0:02:31.8]} 15. Be2 {[%clk
0:02:05.3]} 15... f5 {[%clk 0:02:31.5]} 16. Kh1 {[%clk 0:02:05.6]} 16... a6
{[%clk 0:02:29.3]} 17. Rg1 {[%clk 0:02:05.5]} 17... Qd7 {[%clk 0:02:21.3]} 18.
h3 {[%clk 0:02:00.8]} 18... Rf6 {[%clk 0:02:10.2]} 19. Qb6 {[%clk 0:01:56.5]}
19... Rb8 {[%clk 0:02:05.8]} 20. Rc1 {[%clk 0:01:49.4]} 20... Qd8 {[%clk
0:01:50.2]} 21. Qxd8+ {[%clk 0:01:47.5]} 21... Rxd8 {[%clk 0:01:51.1]} 22. g4
{[%clk 0:01:37.2]} 22... Rf7 {[%clk 0:01:39.9]} 23. Kg2 {[%clk 0:01:31.4]} 23...
g6 {[%clk 0:01:36.8]} 24. Kg3 {[%clk 0:01:24.3]} 24... Kf8 {[%clk 0:01:36.9]}
25. g5 {[%clk 0:01:23.4]} 25... Ke7 {[%clk 0:01:32.6]} 26. h4 {[%clk 0:01:24.1]}
26... h5 {[%clk 0:01:29.1]} 27. gxh6 {[%clk 0:01:20.6]} 27... Rh8 {[%clk
0:01:29.2]} 28. Rh1 {[%clk 0:01:15]} 28... Rxh6 {[%clk 0:01:29.5]} 29. c4 {[%clk
0:01:10.4]} 29... Rfh7 {[%clk 0:01:19.1]} 30. a3 {[%clk 0:01:06.4]} 30... Nd8
{[%clk 0:01:00.7]} 31. b4 {[%clk 0:00:59.1]} 31... Nf7 {[%clk 0:00:58.4]} 32. c5
{[%clk 0:00:51.9]} 32... g5 {[%clk 0:00:56.1]} 33. fxg5 {[%clk 0:00:48.1]} 33...
Nxg5 {[%clk 0:00:56.1]} 34. h5 {[%clk 0:00:43.2]} 34... Rg7 {[%clk 0:00:51.8]}
35. Kf2 {[%clk 0:00:41.2]} 35... f4 {[%clk 0:00:49.5]} 1/2-1/2

[Event "Early-Titled-Tuesday-Blitz-September-05-2023"]
[Site "Chess.com"]
[Date "2023.09.05"]
[Round "11"]
[White "hurricane7791"]
[Black "Emp3rador"]
[Result "1-0"]
[WhiteElo "2720"]
[BlackElo "2502"]
[TimeControl "180+1"]
[EndTime "10:04:44 PDT"]
[Termination "hurricane7791 won on time"]

1. d4 {[%clk 0:03:00.9]} 1... d5 {[%clk 0:02:59.8]} 2. c4 {[%clk 0:02:57.6]}
2... c6 {[%clk 0:02:59.9]} 3. Nf3 {[%clk 0:02:54.8]} 3... Nf6 {[%clk 0:03:00]}
4. Nc3 {[%clk 0:02:49.5]} 4... dxc4 {[%clk 0:03:00.3]} 5. a4 {[%clk 0:02:46.6]}
5... Bf5 {[%clk 0:02:59.8]} 6. e3 {[%clk 0:02:44]} 6... e6 {[%clk 0:02:59.7]} 7.
Bxc4 {[%clk 0:02:44.7]} 7... Bb4 {[%clk 0:02:59.9]} 8. O-O {[%clk 0:02:45.2]}
8... O-O {[%clk 0:03:00.3]} 9. Nh4 {[%clk 0:02:45.9]} 9... Bg4 {[%clk
0:02:49.3]} 10. f3 {[%clk 0:02:46]} 10... Bh5 {[%clk 0:02:49.7]} 11. g4 {[%clk
0:02:46.2]} 11... Bg6 {[%clk 0:02:50]} 12. Nxg6 {[%clk 0:02:44.2]} 12... hxg6
{[%clk 0:02:50.9]} 13. e4 {[%clk 0:02:38.4]} 13... Nbd7 {[%clk 0:02:46.8]} 14.
Be3 {[%clk 0:02:35.3]} 14... Qa5 {[%clk 0:02:38.7]} 15. Na2 {[%clk 0:02:23.5]}
15... Be7 {[%clk 0:02:37.8]} 16. g5 {[%clk 0:02:11.4]} 16... Ne8 {[%clk
0:01:45.6]} 17. f4 {[%clk 0:02:11.1]} 17... Nd6 {[%clk 0:01:44]} 18. Bd3 {[%clk
0:02:11.3]} 18... Rfd8 {[%clk 0:01:24.2]} 19. Rc1 {[%clk 0:02:07.7]} 19... Rac8
{[%clk 0:01:19.5]} 20. b4 {[%clk 0:02:06.7]} 20... Qc7 {[%clk 0:01:16.7]} 21. h4
{[%clk 0:02:07.2]} 21... a5 {[%clk 0:01:11]} 22. b5 {[%clk 0:02:04.3]} 22... Qb8
{[%clk 0:01:00.2]} 23. h5 {[%clk 0:01:55.8]} 23... gxh5 {[%clk 0:00:33.4]} 24.
Qxh5 {[%clk 0:01:48.8]} 24... g6 {[%clk 0:00:31]} 25. Qh3 {[%clk 0:01:45.9]}
25... cxb5 {[%clk 0:00:30.6]} 26. axb5 {[%clk 0:01:41.5]} 26... Rxc1 {[%clk
0:00:27.7]} 27. Nxc1 {[%clk 0:01:41]} 27... Bf8 {[%clk 0:00:22.7]} 28. Ne2
{[%clk 0:01:39.8]} 28... Bg7 {[%clk 0:00:20.5]} 29. Ng3 {[%clk 0:01:39.4]} 29...
Rc8 {[%clk 0:00:18.3]} 30. f5 {[%clk 0:01:17.5]} 30... Rc3 {[%clk 0:00:18.3]}
31. f6 {[%clk 0:01:17.8]} 31... Rxd3 {[%clk 0:00:16.8]} 32. fxg7 {[%clk
0:01:18.1]} 32... Kxg7 {[%clk 0:00:16.9]} 33. Qh6+ {[%clk 0:01:16]} 33... Kg8
{[%clk 0:00:17.2]} 34. Bf4 {[%clk 0:01:16.9]} 34... Rxd4 {[%clk 0:00:14.6]} 35.
Nh5 {[%clk 0:01:14.8]} 35... gxh5 {[%clk 0:00:14]} 36. g6 {[%clk 0:01:15.4]}
36... Nf8 {[%clk 0:00:10]} 37. Be5 {[%clk 0:01:10.2]} 37... f6 {[%clk
0:00:05.2]} 38. Bxf6 {[%clk 0:01:04.9]} 1-0

[Event "Early-Titled-Tuesday-Blitz-September-05-2023"]
[Site "Chess.com"]
[Date "2023.09.05"]
[Round "11"]
[White "Aswathchess"]
[Black "GasconJR"]
[Result "0-1"]
[WhiteElo "2613"]
[BlackElo "2731"]
[TimeControl "180+1"]
[EndTime "10:04:49 PDT"]
[Termination "GasconJR won on time"]

1. e4 {[%clk 0:03:00.9]} 1... e5 {[%clk 0:03:00.1]} 2. Nf3 {[%clk 0:03:00.6]}
2... Nc6 {[%clk 0:03:00.7]} 3. Bc4 {[%clk 0:03:00.9]} 3... Nf6 {[%clk
0:03:00.7]} 4. d3 {[%clk 0:03:00.6]} 4... h6 {[%clk 0:03:01]} 5. O-O {[%clk
0:02:58.9]} 5... d6 {[%clk 0:03:01.1]} 6. a4 {[%clk 0:02:57.2]} 6... g6 {[%clk
0:03:00.7]} 7. h3 {[%clk 0:02:53.2]} 7... g5 {[%clk 0:03:00.8]} 8. Nh2 {[%clk
0:02:48.9]} 8... Rg8 {[%clk 0:03:00.4]} 9. Qf3 {[%clk 0:02:46]} 9... Nd4 {[%clk
0:02:45.7]} 10. Qd1 {[%clk 0:02:45.4]} 10... g4 {[%clk 0:02:46]} 11. c3 {[%clk
0:02:45.4]} 11... Nc6 {[%clk 0:02:40.7]} 12. h4 {[%clk 0:02:27.7]} 12... Nh5
{[%clk 0:02:22.2]} 13. g3 {[%clk 0:02:26.9]} 13... Qf6 {[%clk 0:02:21.3]} 14.
Na3 {[%clk 0:02:22.1]} 14... a6 {[%clk 0:02:20.9]} 15. Nc2 {[%clk 0:02:21.4]}
15... Nf4 {[%clk 0:02:08.4]} 16. Ne3 {[%clk 0:01:53.8]} 16... h5 {[%clk
0:01:56.4]} 17. gxf4 {[%clk 0:01:53]} 17... exf4 {[%clk 0:01:56.7]} 18. Nd5
{[%clk 0:01:53]} 18... Qxh4 {[%clk 0:01:54.9]} 19. Bxf4 {[%clk 0:01:52.7]} 19...
Kd8 {[%clk 0:01:43.3]} 20. Qd2 {[%clk 0:01:39]} 20... Ne5 {[%clk 0:01:38.3]} 21.
Bxe5 {[%clk 0:01:28.1]} 21... dxe5 {[%clk 0:01:36.5]} 22. Kh1 {[%clk 0:01:16]}
22... Be6 {[%clk 0:01:00.3]} 23. d4 {[%clk 0:01:07.1]} 23... Bd6 {[%clk
0:00:55.6]} 24. dxe5 {[%clk 0:00:36.6]} 24... Bxe5 {[%clk 0:00:55.7]} 25. Nf4+
{[%clk 0:00:19.6]} 25... Ke7 {[%clk 0:00:50]} 26. Bxe6 {[%clk 0:00:15.6]} 26...
fxe6 {[%clk 0:00:47.3]} 27. f3 {[%clk 0:00:03.6]} 27... g3 {[%clk 0:00:43.8]}
28. Rg1 {[%clk 0:00:01.2]} 28... Bxf4 {[%clk 0:00:42.7]} 0-1

[Event "Early-Titled-Tuesday-Blitz-September-05-2023"]
[Site "Chess.com"]
[Date "2023.09.05"]
[Round "11"]
[White "tteshan"]
[Black "Chessdude1987"]
[Result "1-0"]
[WhiteElo "2570"]
[BlackElo "2438"]
[TimeControl "180+1"]
[EndTime "10:04:49 PDT"]
[Termination "tteshan won on time"]

1. d4 {[%clk 0:03:00.9]} 1... e6 {[%clk 0:03:00]} 2. e4 {[%clk 0:02:56.7]} 2...
d5 {[%clk 0:02:59.1]} 3. Nd2 {[%clk 0:02:53.1]} 3... c5 {[%clk 0:02:58.6]} 4.
exd5 {[%clk 0:02:53.1]} 4... Qxd5 {[%clk 0:02:59.5]} 5. Ngf3 {[%clk 0:02:53.5]}
5... cxd4 {[%clk 0:02:59.5]} 6. Bc4 {[%clk 0:02:54.1]} 6... Qd6 {[%clk
0:02:59.7]} 7. O-O {[%clk 0:02:54.8]} 7... Nf6 {[%clk 0:02:59.8]} 8. Nb3 {[%clk
0:02:55.5]} 8... Nc6 {[%clk 0:02:59.4]} 9. Nbxd4 {[%clk 0:02:56]} 9... Nxd4
{[%clk 0:02:59.7]} 10. Qxd4 {[%clk 0:02:56.8]} 10... Qxd4 {[%clk 0:02:59.4]} 11.
Nxd4 {[%clk 0:02:57.7]} 11... Bc5 {[%clk 0:02:59.6]} 12. Nb3 {[%clk 0:02:57.4]}
12... Bb6 {[%clk 0:02:59.8]} 13. Bf4 {[%clk 0:02:55.6]} 13... O-O {[%clk
0:02:47.3]} 14. a4 {[%clk 0:02:55.1]} 14... a5 {[%clk 0:02:43.1]} 15. Rad1
{[%clk 0:02:50.8]} 15... Bd7 {[%clk 0:02:41.3]} 16. Bd6 {[%clk 0:02:42.1]} 16...
Rfc8 {[%clk 0:02:34.6]} 17. Nd2 {[%clk 0:02:12.4]} 17... Bxa4 {[%clk 0:02:33.9]}
18. b3 {[%clk 0:02:09.8]} 18... Bc6 {[%clk 0:02:30.5]} 19. Rfe1 {[%clk
0:02:05.9]} 19... Rd8 {[%clk 0:02:09.1]} 20. Bg3 {[%clk 0:01:47.7]} 20... Rd7
{[%clk 0:02:05.4]} 21. Nb1 {[%clk 0:01:44.9]} 21... Rad8 {[%clk 0:02:00.4]} 22.
Rxd7 {[%clk 0:01:42.4]} 22... Rxd7 {[%clk 0:02:00.7]} 23. Nc3 {[%clk 0:01:41.9]}
23... Rd2 {[%clk 0:01:41.3]} 24. Bd3 {[%clk 0:01:39]} 24... Ng4 {[%clk
0:01:33.4]} 25. Rf1 {[%clk 0:01:24.9]} 25... Ne3 {[%clk 0:01:12]} 26. Rc1 {[%clk
0:01:11]} 26... Ng4 {[%clk 0:00:32.2]} 27. Rf1 {[%clk 0:00:58.5]} 27... Ne3
{[%clk 0:00:21.2]} 28. Rc1 {[%clk 0:00:58]} 28... Ng4 {[%clk 0:00:12.9]} 29. Nd1
{[%clk 0:00:52.4]} 29... Bd5 {[%clk 0:00:05.3]} 30. h3 {[%clk 0:00:51.3]} 30...
Nxf2 {[%clk 0:00:02.7]} 31. Bxf2 {[%clk 0:00:45.1]} 31... Bxf2+ {[%clk
0:00:01.4]} 32. Nxf2 {[%clk 0:00:46]} 1-0

[Event "Early-Titled-Tuesday-Blitz-September-05-2023"]
[Site "Chess.com"]
[Date "2023.09.05"]
[Round "11"]
[White "PawnEatingZombie"]
[Black "AlphaPerseii"]
[Result "0-1"]
[WhiteElo "2063"]
[BlackElo "2346"]
[TimeControl "180+1"]
[EndTime "10:04:53 PDT"]
[Termination "AlphaPerseii won by resignation"]

1. e4 {[%clk 0:03:00.9]} 1... c6 {[%clk 0:02:56.2]} 2. d4 {[%clk 0:02:59.9]}
2... d5 {[%clk 0:02:56.8]} 3. exd5 {[%clk 0:03:00.8]} 3... cxd5 {[%clk
0:02:56.6]} 4. c3 {[%clk 0:03:00.3]} 4... e6 {[%clk 0:02:56.6]} 5. Nf3 {[%clk
0:02:59.3]} 5... Bd6 {[%clk 0:02:56.9]} 6. Bd3 {[%clk 0:02:57.8]} 6... Nc6
{[%clk 0:02:51.7]} 7. O-O {[%clk 0:02:57.5]} 7... Nge7 {[%clk 0:02:34.8]} 8. Re1
{[%clk 0:02:56.2]} 8... Qc7 {[%clk 0:02:30.8]} 9. Na3 {[%clk 0:02:48.6]} 9... a6
{[%clk 0:02:29.7]} 10. Nc2 {[%clk 0:02:48.9]} 10... b5 {[%clk 0:02:29.5]} 11.
Ne3 {[%clk 0:02:33.5]} 11... Bd7 {[%clk 0:02:17]} 12. g3 {[%clk 0:02:15.4]}
12... O-O {[%clk 0:01:50.9]} 13. Ng2 {[%clk 0:02:15.2]} 13... f6 {[%clk
0:01:48.5]} 14. Bf4 {[%clk 0:00:54.1]} 14... e5 {[%clk 0:01:47.3]} 15. dxe5
{[%clk 0:00:54.7]} 15... fxe5 {[%clk 0:01:48.2]} 16. Nxe5 {[%clk 0:00:53.5]}
16... Nxe5 {[%clk 0:01:45.8]} 17. Bxh7+ {[%clk 0:00:53.4]} 17... Kxh7 {[%clk
0:01:36]} 18. Bxe5 {[%clk 0:00:47.6]} 18... Rf5 {[%clk 0:01:28.2]} 19. Bxd6
{[%clk 0:00:38.6]} 19... Qxd6 {[%clk 0:01:29.1]} 20. Qd3 {[%clk 0:00:25.5]}
20... Kh8 {[%clk 0:01:26.6]} 21. Nh4 {[%clk 0:00:22.5]} 21... Rf6 {[%clk
0:01:21.7]} 22. Rxe7 {[%clk 0:00:12.2]} 22... g5 {[%clk 0:01:08.6]} 23. Rxd7
{[%clk 0:00:10.7]} 23... Qxd7 {[%clk 0:01:07.4]} 24. Ng6+ {[%clk 0:00:10.6]}
24... Kg7 {[%clk 0:01:07.8]} 25. Ne5 {[%clk 0:00:10.6]} 25... Qe6 {[%clk
0:00:56.5]} 26. Qd4 {[%clk 0:00:10.6]} 26... Re8 {[%clk 0:00:54.3]} 27. Nd3
{[%clk 0:00:10.8]} 27... Qe4 {[%clk 0:00:52.4]} 28. Rf1 {[%clk 0:00:09]} 28...
Qxd4 {[%clk 0:00:52.2]} 29. cxd4 {[%clk 0:00:09.7]} 29... Re2 {[%clk 0:00:51.3]}
30. Rd1 {[%clk 0:00:07.1]} 30... Rc6 {[%clk 0:00:46.7]} 31. Nc5 {[%clk
0:00:05.9]} 31... Rxb2 {[%clk 0:00:45.6]} 32. Re1 {[%clk 0:00:06.2]} 32... Rxa2
{[%clk 0:00:44.8]} 33. Re7+ {[%clk 0:00:06.2]} 33... Kf6 {[%clk 0:00:44.6]} 34.
Re5 {[%clk 0:00:05]} 34... Rxc5 {[%clk 0:00:44.3]} 0-1

[Event "Early-Titled-Tuesday-Blitz-September-05-2023"]
[Site "Chess.com"]
[Date "2023.09.05"]
[Round "11"]
[White "viktorskliarov"]
[Black "szachuspl"]
[Result "1-0"]
[WhiteElo "2658"]
[BlackElo "2540"]
[TimeControl "180+1"]
[EndTime "10:04:55 PDT"]
[Termination "viktorskliarov won by resignation"]

1. e4 {[%clk 0:03:00.9]} 1... g6 {[%clk 0:02:51.4]} 2. d4 {[%clk 0:03:00.8]}
2... Bg7 {[%clk 0:02:50]} 3. Nc3 {[%clk 0:03:01]} 3... d6 {[%clk 0:02:50.5]} 4.
Be3 {[%clk 0:02:59.7]} 4... Nf6 {[%clk 0:02:45.8]} 5. f3 {[%clk 0:02:59.1]} 5...
a6 {[%clk 0:02:44.4]} 6. Qd2 {[%clk 0:02:57.5]} 6... Nc6 {[%clk 0:02:44.5]} 7.
g4 {[%clk 0:02:56.7]} 7... h5 {[%clk 0:02:43.8]} 8. g5 {[%clk 0:02:56.4]} 8...
Nd7 {[%clk 0:02:44.1]} 9. Nge2 {[%clk 0:02:52.5]} 9... e5 {[%clk 0:02:44.3]} 10.
d5 {[%clk 0:02:52.6]} 10... Ne7 {[%clk 0:02:44.2]} 11. h4 {[%clk 0:02:52.7]}
11... O-O {[%clk 0:02:42.6]} 12. O-O-O {[%clk 0:02:51.5]} 12... b5 {[%clk
0:02:39.6]} 13. Ng3 {[%clk 0:02:51.4]} 13... Nb6 {[%clk 0:02:39.6]} 14. b3
{[%clk 0:02:51.4]} 14... Bd7 {[%clk 0:02:38.7]} 15. Kb1 {[%clk 0:02:50.8]} 15...
b4 {[%clk 0:02:39]} 16. Nce2 {[%clk 0:02:46.3]} 16... a5 {[%clk 0:02:39.4]} 17.
Bh3 {[%clk 0:02:46.1]} 17... Bxh3 {[%clk 0:02:35.9]} 18. Rxh3 {[%clk 0:02:45.4]}
18... Qd7 {[%clk 0:02:36.3]} 19. Rh2 {[%clk 0:02:44.4]} 19... a4 {[%clk
0:02:36.9]} 20. Qxb4 {[%clk 0:02:37.2]} 20... Rfb8 {[%clk 0:02:35.7]} 21. Bxb6
{[%clk 0:02:28.5]} 21... Rxb6 {[%clk 0:02:35.1]} 22. Qc4 {[%clk 0:02:27.3]}
22... Nc8 {[%clk 0:02:25]} 23. Nc1 {[%clk 0:02:22]} 23... axb3 {[%clk
0:02:24.7]} 24. cxb3 {[%clk 0:02:21]} 24... Rba6 {[%clk 0:02:21.2]} 25. Nf1
{[%clk 0:02:06.9]} 25... Nb6 {[%clk 0:02:20.3]} 26. Qc6 {[%clk 0:01:57.7]} 26...
Qxc6 {[%clk 0:02:15.8]} 27. dxc6 {[%clk 0:01:58.1]} 27... Nc8 {[%clk 0:02:16.1]}
28. Rc2 {[%clk 0:01:52.6]} 28... Ne7 {[%clk 0:02:16.1]} 29. Ne3 {[%clk
0:01:52.6]} 29... Nxc6 {[%clk 0:02:16.3]} 30. Nd5 {[%clk 0:01:51.3]} 30... Nd4
{[%clk 0:02:05.1]} 31. Rxd4 {[%clk 0:01:44.4]} 31... exd4 {[%clk 0:02:05.1]} 32.
Nxc7 {[%clk 0:01:44.8]} 32... Be5 {[%clk 0:01:56.6]} 33. Nxa6 {[%clk 0:01:43.4]}
33... Rxa6 {[%clk 0:01:56.7]} 34. Nd3 {[%clk 0:01:00.3]} 34... Bg3 {[%clk
0:01:56.7]} 35. Rg2 {[%clk 0:01:00.7]} 35... Bxh4 {[%clk 0:01:54]} 36. a4 {[%clk
0:01:00.1]} 36... Kg7 {[%clk 0:01:49.9]} 37. Kb2 {[%clk 0:00:54.8]} 37... Rc6
{[%clk 0:01:48.9]} 38. a5 {[%clk 0:00:37.2]} 38... f6 {[%clk 0:01:36.3]} 39.
gxf6+ {[%clk 0:00:37.1]} 39... Bxf6 {[%clk 0:01:34.8]} 40. b4 {[%clk 0:00:24.3]}
40... Bd8 {[%clk 0:01:32]} 41. Nf4 {[%clk 0:00:21.7]} 41... d5 {[%clk
0:01:29.6]} 42. exd5 {[%clk 0:00:20.6]} 42... Rd6 {[%clk 0:01:28.7]} 43. Ne6+
{[%clk 0:00:18.2]} 43... Kf6 {[%clk 0:01:27.7]} 44. Nxd8 {[%clk 0:00:18.2]}
44... Rxd8 {[%clk 0:01:28.2]} 45. a6 {[%clk 0:00:18.8]} 45... Rxd5 {[%clk
0:01:27.1]} 46. a7 {[%clk 0:00:18.3]} 46... Rd8 {[%clk 0:01:27.4]} 47. b5 {[%clk
0:00:18.7]} 47... d3 {[%clk 0:01:18.1]} 48. Kc1 {[%clk 0:00:16.9]} 48... d2+
{[%clk 0:01:19]} 49. Kd1 {[%clk 0:00:17]} 49... Ra8 {[%clk 0:01:16]} 50. b6
{[%clk 0:00:17.2]} 50... Kf5 {[%clk 0:01:16.3]} 51. Rxd2 {[%clk 0:00:16.4]} 1-0

[Event "Early-Titled-Tuesday-Blitz-September-05-2023"]
[Site "Chess.com"]
[Date "2023.09.05"]
[Round "11"]
[White "S-Fazulyanov"]
[Black "NowInChess"]
[Result "1-0"]
[WhiteElo "2445"]
[BlackElo "2278"]
[TimeControl "180+1"]
[EndTime "10:04:57 PDT"]
[Termination "S-Fazulyanov won on time"]

1. e4 {[%clk 0:03:00.2]} 1... e6 {[%clk 0:02:59.9]} 2. d4 {[%clk 0:03:00.6]}
2... d5 {[%clk 0:03:00.8]} 3. e5 {[%clk 0:03:01.1]} 3... c5 {[%clk 0:03:00.6]}
4. c3 {[%clk 0:03:01.6]} 4... Nc6 {[%clk 0:03:01.2]} 5. Nf3 {[%clk 0:03:02.2]}
5... Qb6 {[%clk 0:03:01.6]} 6. a3 {[%clk 0:03:02.6]} 6... f6 {[%clk 0:03:01.6]}
7. Bd3 {[%clk 0:03:01.3]} 7... fxe5 {[%clk 0:02:59.2]} 8. dxe5 {[%clk
0:03:00.2]} 8... c4 {[%clk 0:02:59.5]} 9. Bc2 {[%clk 0:02:58.9]} 9... Bd7 {[%clk
0:02:55.1]} 10. O-O {[%clk 0:02:58]} 10... O-O-O {[%clk 0:02:47.6]} 11. b4
{[%clk 0:02:50.7]} 11... Nh6 {[%clk 0:02:26.5]} 12. Be3 {[%clk 0:02:22.2]} 12...
Qc7 {[%clk 0:02:20.2]} 13. b5 {[%clk 0:02:21.2]} 13... Nxe5 {[%clk 0:02:17]} 14.
Nxe5 {[%clk 0:02:20.8]} 14... Qxe5 {[%clk 0:02:16.4]} 15. Bxa7 {[%clk
0:02:21.3]} 15... Bd6 {[%clk 0:01:59.4]} 16. f4 {[%clk 0:02:14.1]} 16... Qf6
{[%clk 0:01:55.4]} 17. Bd4 {[%clk 0:02:08.9]} 17... Qh4 {[%clk 0:01:50.8]} 18.
g3 {[%clk 0:01:30.7]} 18... Qh3 {[%clk 0:01:48.5]} 19. Qe2 {[%clk 0:01:30.4]}
19... Bxb5 {[%clk 0:01:34.6]} 20. Nd2 {[%clk 0:01:29.6]} 20... Rhg8 {[%clk
0:01:20.8]} 21. Nf3 {[%clk 0:01:28.8]} 21... Bd7 {[%clk 0:00:56]} 22. Bxh7
{[%clk 0:01:18.2]} 22... Rh8 {[%clk 0:00:41.1]} 23. Ng5 {[%clk 0:01:17.8]} 23...
Qg4 {[%clk 0:00:32.1]} 24. Qxg4 {[%clk 0:01:15.3]} 24... Nxg4 {[%clk 0:00:33]}
25. Bxg7 {[%clk 0:01:15.4]} 25... Bc5+ {[%clk 0:00:18.2]} 26. Kh1 {[%clk
0:01:05.7]} 26... d4 {[%clk 0:00:15.2]} 27. Bxh8 {[%clk 0:00:55.5]} 27... Rxh8
{[%clk 0:00:10.7]} 28. Kg2 {[%clk 0:00:48.6]} 28... Bc6+ {[%clk 0:00:04.4]} 29.
Be4 {[%clk 0:00:41.8]} 29... Rxh2+ {[%clk 0:00:05.3]} 30. Kf3 {[%clk 0:00:42]}
30... Bxe4+ {[%clk 0:00:02]} 31. Nxe4 {[%clk 0:00:40.5]} 31... Nh6 {[%clk
0:00:01.4]} 32. Nxc5 {[%clk 0:00:40.3]} 1-0

[Event "Early-Titled-Tuesday-Blitz-September-05-2023"]
[Site "Chess.com"]
[Date "2023.09.05"]
[Round "11"]
[White "MusicCityMaster"]
[Black "Rurep26"]
[Result "1/2-1/2"]
[WhiteElo "2425"]
[BlackElo "2823"]
[TimeControl "180+1"]
[EndTime "10:05:01 PDT"]
[Termination "Game drawn by repetition"]

1. e4 {[%clk 0:03:00.9]} 1... e6 {[%clk 0:03:00]} 2. d4 {[%clk 0:03:00.3]} 2...
d5 {[%clk 0:03:00.4]} 3. Nc3 {[%clk 0:03:01]} 3... Bb4 {[%clk 0:02:58.7]} 4. e5
{[%clk 0:02:57.8]} 4... c5 {[%clk 0:02:58.8]} 5. a3 {[%clk 0:02:57]} 5... Bxc3+
{[%clk 0:02:58.9]} 6. bxc3 {[%clk 0:02:57.9]} 6... Qc7 {[%clk 0:02:59.5]} 7. Nf3
{[%clk 0:02:49.9]} 7... b6 {[%clk 0:02:57.8]} 8. Bb5+ {[%clk 0:02:48.7]} 8...
Bd7 {[%clk 0:02:57.6]} 9. Bd3 {[%clk 0:02:48.5]} 9... Ba4 {[%clk 0:02:58.2]} 10.
O-O {[%clk 0:02:40.2]} 10... cxd4 {[%clk 0:02:58.3]} 11. cxd4 {[%clk 0:02:40.1]}
11... Qc3 {[%clk 0:02:58.8]} 12. Rb1 {[%clk 0:02:28]} 12... Ne7 {[%clk
0:02:54.3]} 13. Rb4 {[%clk 0:02:15]} 13... Qc6 {[%clk 0:02:36.8]} 14. Qe2 {[%clk
0:02:10.8]} 14... Nd7 {[%clk 0:02:25.3]} 15. Bg5 {[%clk 0:01:40.1]} 15... a5
{[%clk 0:02:15]} 16. Rb2 {[%clk 0:01:26.9]} 16... Nf5 {[%clk 0:02:06.1]} 17.
Rfb1 {[%clk 0:01:20.8]} 17... Rc8 {[%clk 0:02:02.1]} 18. g4 {[%clk 0:01:17.3]}
18... Ne7 {[%clk 0:01:59.2]} 19. Bxe7 {[%clk 0:01:15.5]} 19... Kxe7 {[%clk
0:02:00.1]} 20. Qe3 {[%clk 0:01:08.6]} 20... h6 {[%clk 0:01:59.2]} 21. g5 {[%clk
0:01:06.1]} 21... Qc3 {[%clk 0:01:54.3]} 22. Qf4 {[%clk 0:00:56.7]} 22... Rc6
{[%clk 0:01:36.2]} 23. g6 {[%clk 0:00:55.9]} 23... Rf8 {[%clk 0:01:32.3]} 24.
gxf7 {[%clk 0:00:53.1]} 24... Rxf7 {[%clk 0:01:33.2]} 25. Qh4+ {[%clk
0:00:53.2]} 25... g5 {[%clk 0:01:27.5]} 26. Qxh6 {[%clk 0:00:43.4]} 26... Rxf3
{[%clk 0:01:27]} 27. Qxg5+ {[%clk 0:00:43.5]} 27... Ke8 {[%clk 0:01:23.7]} 28.
Qh5+ {[%clk 0:00:37]} 28... Rf7 {[%clk 0:01:23.5]} 29. Bg6 {[%clk 0:00:37.1]}
29... Qxd4 {[%clk 0:01:21.4]} 30. Bxf7+ {[%clk 0:00:37.1]} 30... Kd8 {[%clk
0:01:22]} 31. Bg6 {[%clk 0:00:23.5]} 31... Kc7 {[%clk 0:01:20.9]} 32. Qh7 {[%clk
0:00:19.7]} 32... Qg4+ {[%clk 0:01:08.3]} 33. Kh1 {[%clk 0:00:19.8]} 33... Qf3+
{[%clk 0:01:07.8]} 34. Kg1 {[%clk 0:00:20.3]} 34... Qg4+ {[%clk 0:00:47.8]} 35.
Kh1 {[%clk 0:00:20]} 35... Qf3+ {[%clk 0:00:30.6]} 36. Kg1 {[%clk 0:00:20.1]}
36... Qg4+ {[%clk 0:00:28]} 1/2-1/2